Cogmind - Beta 16 @@@ ROGUE MODE // 2025.12.10 @ 20:23:12 Player: Lazz Result: Destroyed by H-66 Slayer with Gauss Rifle Performance ------------- Evolutions (4) 2000 Regions Visited (8) 1600 Robots Destroyed (22) 110 Value Destroyed (380) 380 Prototype IDs (14) 280 Alien Tech Used (0) 0 Bonus (1857) 1857 TOTAL SCORE: 6227 Bonus ------- Follower Combat Kills 760 Registered with UFD 300 Met Optimus in HQ 500 Met Imprinter 300 Friendly Fire -3 Cogmind --------- Core Integrity 0/850 Matter 285/300 Energy 99/100 System Corruption 2% Temperature Cool (0) Movement Core (50) Location -5/Proximity Caves Parts ------- > --- POWER (2) -------- (None) > --- PROPULSION (3) --- (None) > --- UTILITY (7) ------ Makeshift System Shield > --- WEAPON (3) ------- (None) > --- INVENTORY (5) ---- Carbon-fiber Leg Makeshift Leg Flexi-carbon Leg Makeshift Sensor Array Advanced System Restoration Module Peak State ------------ > --- POWER ------------ Angular Momentum Engine Light Angular Momentum Engine > --- PROPULSION ------- Overtuned Titanium Leg Flexi-carbon Leg Flexi-carbon Leg Arachnoskeleton > --- UTILITY ---------- Improved Heat Sink Large Storage Unit Improved Terrain Scanner Improved Terrain Scanner Surveybot 17 Chip Hardened Medium Armor Plating Layered Light Armor Plating > --- WEAPON ----------- Field Laser Gauss Rifle Flak Gun > --- INVENTORY -------- Neutrino Core Carbon-fiber Leg Makeshift Leg Flexi-carbon Leg Advanced Power Amplifier Matter Filter Precision Matter Filter Improved Transmission Jammer Improved Powered Armor Advanced System Restoration Module Mobile Refinery Mk. CCLXVII Grenade Launcher Rocket Launcher Heavy Flail Makeshift Spear [Rating: 86] Favorites ----------- Power Light Deuterium Engine Engine Light Deuterium Engine Power Core Neutrino Core Propulsion Flexi-carbon Leg Leg Flexi-carbon Leg Wheel Wheel Utility Improved Terrain Scanner Device Improved Terrain Scanner Storage Large Storage Unit Processor Surveybot 17 Chip Hackware Makeshift System Shield Protection Hardened Medium Armor Plating Weapon Field Laser Energy Gun Field Laser Ballistic Gun Minigun Launcher Rocket Launcher Impact Weapon Heavy Flail Piercing Weapon Makeshift Spear Build | -11 -10 -10 -8 -6 -6 -6 -6 -5 ------- Run | Yrd Mat Sub Scr Fac Low Low Zio Pro Slots Evolved 8 | . . . . 8 . . . . Power 1 | . . . . 1 . . . . Propulsion 1 | . . . . 1 . . . . Utility 5 | . . . . 5 . . . . Weapon 1 | . . . . 1 . . . . Parts Attached 42 | 7 1 1 5 8 1 6 8 5 Power 7 | 1 . . 1 1 . 2 2 . Engine 6 | 1 . . 1 1 . 2 1 . Core 1 | . . . . . . . 1 . Reactor . | . . . . . . . . . Propulsion 7 | 2 . . 2 1 1 1 . . Treads . | . . . . . . . . . Leg 4 | . . . 1 1 1 1 . . Wheel 3 | 2 . . 1 . . . . . Hover . | . . . . . . . . . Flight . | . . . . . . . . . Utility 16 | 2 1 . . 4 . 2 3 4 Device 9 | 1 . . . 3 . . 2 3 Storage 2 | 1 1 . . . . . . . Processor 1 | . . . . 1 . . . . Hackware 1 | . . . . . . . . 1 Protection 3 | . . . . . . 2 1 . Artifact . | . . . . . . . . . Weapon 12 | 2 . 1 2 2 . 1 3 1 Energy Gun 3 | 2 . . . 1 . . . . Energy Cannon . | . . . . . . . . . Ballistic Gun 5 | . . . 2 1 . 1 1 . Ballistic Cannon . | . . . . . . . . . Launcher 2 | . . . . . . . 2 . Special Weapon . | . . . . . . . . . Impact Weapon 1 | . . . . . . . . 1 Slashing Weapon . | . . . . . . . . . Piercing Weapon 1 | . . 1 . . . . . . Special Melee Weapon . | . . . . . . . . . Unidentified Prototypes 2 | . . . . . . . 2 . Parts Lost 25 | . . 2 . . . 2 16 5 Power 5 | . . 1 . . . 1 2 1 Propulsion 4 | . . . . . . . 3 1 Utility 9 | . . . . . . . 6 3 Weapon 7 | . . 1 . . . 1 5 . Highest Loss Streak 14 | . . 1 . . . 1 14 5 To Critical Strikes 3 | . . . . . . . 3 . Average Backups 10 | 2 7 10 10 6 7 11 14 6 Power 1 | . . 1 2 1 1 1 . . Propulsion 2 | 1 5 4 1 1 1 2 3 3 Utility 2 | . 1 2 2 . . 2 6 3 Weapon 3 | . 1 2 3 3 4 5 3 . Tool/Special . | . . . . . . . . . Unused Backups 18 | . . 5 5 . . 1 3 4 Power 3 | . . . 1 . . . 2 . Propulsion 11 | . . 5 2 . . 1 . 3 Utility 2 | . . . . . . . 1 1 Weapon 2 | . . . 2 . . . . . Tool/Special . | . . . . . . . . . Average Slot Usage (%) 85 | . 100 96 92 60 76 80 85 26 Engine 11 | . 14 11 13 8 11 10 10 . Leg 11 | . . . 5 9 15 21 21 3 Wheel 11 | . 28 28 22 . . . . . Device 16 | . 14 14 14 18 22 19 15 10 Storage 9 | . 14 14 14 5 5 5 5 3 Processor 2 | . . . . 3 5 5 4 . Protection 2 | . . . . . . 2 10 . Energy Gun 5 | . 28 19 . 1 5 5 4 . Ballistic Gun 7 | . . . 7 7 11 9 10 . Piercing Weapon 5 | . . 7 14 3 . . . . Peak Build Rating 86 | 9 10 16 27 70 75 83 86 56 Average Rating 46 | 6 9 13 21 63 74 77 80 29 On Entrance 35 | . 9 10 14 26 69 75 79 36 Avg Prop Armor Cover (%) 4 | . . . 8 5 4 3 2 . Naked Turns . | . . . . . . . . . Heaviest Build 81 | 14 29 30 32 50 50 60 81 47 Greatest Support 109 | 26 26 26 26 69 89 90 109 50 Greatest Overweight (x) 10 | 1 1 1 10 . . . . . Average Overweight (x) . | . . . 1 . . . . . Largest Inventory Capacity 15 | 8 15 15 15 15 15 15 15 15 Average Capacity 14 | 7 14 15 15 15 15 15 15 11 Most Carried 15 | 7 9 15 15 14 9 15 15 9 Average Carried 11 | 2 7 14 14 6 7 11 14 5 Final Capacity 15 | 8 15 15 15 15 15 15 15 5 Final Carried 15 | 7 9 15 14 6 9 15 10 5 Class Distribution -------------------- 39% | Mutant 20% | Derelict-Skirmisher 17% | Scavenger-Tank 16% | Derelict-Mutant 4% | Scavenger-Mutant Dominant Class ---------------- Mutant | -10/Materials Mutant | -10/Subcaves Mutant | -8/Scraptown Derelict-Mutant | -6/Factory Derelict-Skirmisher | -6/Lower Caves Scavenger-Mutant | -6/Lower Caves Scavenger-Tank | -6/Zion Mutant | -5/Proximity Caves Resources | -11 -10 -10 -8 -6 -6 -6 -6 -5 ----------- Run | Yrd Mat Sub Scr Fac Low Low Zio Pro Matter Collected 1637 | 270 10 10 50 . 621 463 203 10 Remotely . | . . . . . . . . . Salvage Created 759 | 208 54 . . 29 58 163 247 . Parts 47 | 16 3 . . 4 1 5 18 . Haulers Intercepted 2 | . 1 . . . . 1 . . Recyclers Shooed . | . . . . . . . . . Parts Field Recycled . | . . . . . . . . . Retrieved Matter . | . . . . . . . . . Parts Self-Destructed 37 | . . 6 . . 10 21 . . Prevented 9 | . . . . . . 9 . . Parts Restored . | . . . . . . . . . Kills | -11 -10 -10 -8 -6 -6 -6 -6 -5 ------- Run | Yrd Mat Sub Scr Fac Low Low Zio Pro Combat Hostiles Destroyed 5 | . . . . 1 1 1 2 . Guns 5 | . . . . 1 1 1 2 . Classes Destroyed 9 | 3 1 . . 1 1 1 2 . Worker 1 | 1 . . . . . . . . Tunneler 5 | 5 . . . . . . . . Hauler 2 | . 1 . . . . 1 . . Recycler 1 | 1 . . . . . . . . Swarmer 1 | . . . . 1 . . . . Grunt 1 | . . . . . 1 . . . Hunter 1 | . . . . . . 1 . . Zionite 8 | . . . . . . . 8 . Thug 1 | . . . . . . . 1 . Savage 1 | . . . . . . . 1 . Best Kill Streak 9 | 6 1 . . 1 1 1 9 . Combat Bots Only 2 | . . . . 1 1 1 2 . Max Kills in Single Turn 2 | 1 1 . . 1 1 1 2 . Gunslinging . | . . . . . . . . . Exploded . | . . . . . . . . . Melee . | . . . . . . . . . Uniques/NPCs Destroyed . | . . . . . . . . . Combat | -11 -10 -10 -8 -6 -6 -6 -6 -5 -------- Run | Yrd Mat Sub Scr Fac Low Low Zio Pro Hostile Shots Fired 381 | . . 23 . 10 14 18 216 100 Missed 160 | . . 8 . 3 5 4 105 35 Hits 221 | . . 15 . 7 9 14 111 65 Melee 9 | . . . . . . 2 7 . Projectile 212 | . . 15 . 7 9 12 104 65 AOE 2 | . . 1 . . . . 1 . Critical Strikes 14 | . . 1 . 1 . 1 11 . Damage Taken 4178 | . . 364 . 104 156 298 2098 1158 Core 981 | . . 121 . . . 102 129 629 Absorbed by Shields . | . . . . . . . . . Core Remaining (%) 75 | 100 . . 51 . . . . . Volleys Fired 67 | 22 3 . . 2 4 19 17 . Largest 3 | 2 2 . . 3 3 3 3 . Hottest 121 | 90 90 . . 118 118 121 119 . Shots Fired 149 | 44 6 . . 6 11 38 44 . Gun 145 | 44 6 . . 6 11 38 40 . Cannon . | . . . . . . . . . Launcher 4 | . . . . . . . 4 . Special . | . . . . . . . . . Kinetic 59 | . . . . 4 8 19 28 . Thermal 86 | 44 6 . . 2 3 19 12 . Explosive 4 | . . . . . . . 4 . Electromagnetic . | . . . . . . . . . Robot Hit Streak 7 | 7 5 . . 1 3 5 6 . Robot Miss Streak 5 | 3 1 . . 3 2 3 5 . Penetration Max . | . . . . . . . . . Secondary Targets 3 | . . . . 1 . . 2 . Max Gunslinging Chain 1 | . . . . 1 . . 1 . Shots Hit Robots 80 | 24 4 . . 1 7 18 25 1 Core Hits 43 | 8 2 . . 1 5 6 21 . Critical Kills . | . . . . . . . . . Critical Parts Destroyed . | . . . . . . . . . Critical Strikes 3 | 2 . . . . . 1 . . Burn 3 | 2 . . . . . 1 . . Melee Attacks 8 | . . 7 . . . . . 1 Impact 1 | . . . . . . . . 1 Slashing . | . . . . . . . . . Piercing 7 | . . 7 . . . . . . Sneak Attacks . | . . . . . . . . . Combat Hostiles . | . . . . . . . . . Follow-up Attacks . | . . . . . . . . . Damage Inflicted 1449 | 273 48 . . 36 131 304 617 40 Guns 1221 | 273 48 . . 36 131 304 429 . Cannons . | . . . . . . . . . Explosions 188 | . . . . . . . 188 . Melee 40 | . . . . . . . . 40 Ramming . | . . . . . . . . . Kinetic 572 | . . . . 18 98 165 291 . Thermal 649 | 273 48 . . 18 33 139 138 . Explosive 188 | . . . . . . . 188 . Electromagnetic . | . . . . . . . . . Impact 40 | . . . . . . . . 40 Slashing . | . . . . . . . . . Piercing . | . . . . . . . . . Highest Corruption 2 | . . . . . . . 2 2 Average Corruption 1 | . . . . . . . 1 2 Corruption Purged . | . . . . . . . . . Corruption Blocked . | . . . . . . . . . Effects 5 | . . . . . . . 4 1 Message Errors 1 | . . . . . . . 1 . Matter Fused 1 | . . . . . . . 1 . Energy Discharges 1 | . . . . . . . 1 . Parts Rejected 1 | . . . . . . . . 1 Misfires 1 | . . . . . . . 1 . Overload Shots . | . . . . . . . . . Overflow Damage . | . . . . . . . . . Projectiles . | . . . . . . . . . Explosions . | . . . . . . . . . Melee . | . . . . . . . . . Knockbacks . | . . . . . . . . . Impact . | . . . . . . . . . Kinetic . | . . . . . . . . . Secondary . | . . . . . . . . . Self-Inflicted Damage 40 | . . . . . . . 40 . Shots 1 | . . . . . . . 1 . Rammed . | . . . . . . . . . Targets Rammed . | . . . . . . . . . Kicked . | . . . . . . . . . Crushed . | . . . . . . . . . Highest Temperature 360 | 360 90 . . 41 59 88 232 . Average Temperature 101 | 167 46 . . 20 31 37 80 . Received Heat Transfer 348 | . . 90 . . 30 66 162 . Effects 4 | 1 . . . . . . 3 . Energy Bleed 2 | 1 . . . . . . 1 . Interference 2 | . . . . . . . 2 . Siege Activations . | . . . . . . . . . Martial Activations . | . . . . . . . . . Shielding Activations . | . . . . . . . . . Robots Disrupted . | . . . . . . . . . Combat Hostiles . | . . . . . . . . . Robots Corrupted . | . . . . . . . . . Combat Hostiles . | . . . . . . . . . Parts Fried . | . . . . . . . . . Impact Corruptions . | . . . . . . . . . Robots Melted . | . . . . . . . . . Combat Hostiles . | . . . . . . . . . Parts Melted 5 | 3 . . . . . 1 1 . Heat Transferred 1804 | 891 136 . . 37 74 370 296 . Parts Sabotaged . | . . . . . . . . . Parts Stolen 2 | . . . . . . 2 . . Parts Stripped . | . . . . . . . . . Power Chain Reactions . | . . . . . . . . . Alert | -11 -10 -10 -8 -6 -6 -6 -6 -5 ------- Run | Yrd Mat Sub Scr Fac Low Low Zio Pro Maximum Alert Level . | . . . . . . . . . Low Security (%) 100 | 100 100 . . 100 . . . . Level 1 . | . . . . . . . . . Level 2 . | . . . . . . . . . Level 3 . | . . . . . . . . . Level 4 . | . . . . . . . . . Level 5 . | . . . . . . . . . High Security . | . . . . . . . . . Max Security . | . . . . . . . . . Peak Influence 22 | 20 7 . . 22 . . . . Initial 3 | . 3 . . . . . . . Average 1 | 4 . . . . . . . . Influence Increases 501 | 35 7 . . 22 122 315 . . Destroy 0b10 Robot/C 320 | . . . . 20 100 200 . . Destroy 0b10 Robot/NC 45 | 35 5 . . . . 5 . . Destroy Leader 32 | . 2 . . . 10 20 . . Allied During Kill 89 | . . . . 2 12 75 . . Lose Combat Pursuer 15 | . . . . . . 15 . . Influence Decreases 501 | 30 12 . . . 144 218 97 . Entered New Map 108 | . 2 . . . 9 . 97 . Time Decay 373 | 30 10 . . . 135 198 . . Lost Part 20 | . . . . . . 20 . . Squads Dispatched 3 | . 3 . . . . . . . Investigation . | . . . . . . . . . Extermination . | . . . . . . . . . Reinforcement 3 | . 3 . . . . . . . Assault . | . . . . . . . . . Garrison . | . . . . . . . . . Intercept . | . . . . . . . . . Searches Triggered . | . . . . . . . . . Construction Impeded . | . . . . . . . . . Haulers Reinforced . | . . . . . . . . . Active Scanning Responses . | . . . . . . . . . Cargo Convoy Interrupts . | . . . . . . . . . Stealth | -11 -10 -10 -8 -6 -6 -6 -6 -5 --------- Run | Yrd Mat Sub Scr Fac Low Low Zio Pro Distress Signals 1 | . 1 . . . . . . . Communications Jammed . | . . . . . . . . . Distress Signals . | . . . . . . . . . Times Spotted 82 | . 7 6 . 3 3 16 44 3 Peak Tracking Total 20 | . 3 3 . 3 1 5 20 3 Tactical Retreats 6 | . . 1 . . . 1 4 . Traps | -11 -10 -10 -8 -6 -6 -6 -6 -5 ------- Run | Yrd Mat Sub Scr Fac Low Low Zio Pro Traps Triggered . | . . . . . . . . . Indirectly . | . . . . . . . . . Trap Hack Attempts . | . . . . . . . . . Triggered . | . . . . . . . . . Disarmed . | . . . . . . . . . Reprogrammed . | . . . . . . . . . Reused . | . . . . . . . . . Traps Extracted . | . . . . . . . . . Installed . | . . . . . . . . . Triggered . | . . . . . . . . . Machines | -11 -10 -10 -8 -6 -6 -6 -6 -5 ---------- Run | Yrd Mat Sub Scr Fac Low Low Zio Pro Machines Disabled 5 | . . 1 . . . . 4 . Max in Single Turn 1 | . . 1 . . . . . . Machines Repaired . | . . . . . . . . . Machines Dismantled . | . . . . . . . . . Machines Sabotaged . | . . . . . . . . . Overloaded Fab Kills . | . . . . . . . . . Hacking | -11 -10 -10 -8 -6 -6 -6 -6 -5 --------- Run | Yrd Mat Sub Scr Fac Low Low Zio Pro Machines Accessed 4 | . . 2 . . 2 . . . Terminals . | . . . . . . . . . Fabricators . | . . . . . . . . . Repair Stations . | . . . . . . . . . Recycling Units . | . . . . . . . . . Scanalyzers . | . . . . . . . . . Garrison Access . | . . . . . . . . . Total Hacks 22 | . . 14 . . 8 . . . Successful 22 | . . 14 . . 8 . . . Failed . | . . . . . . . . . Catastrophic . | . . . . . . . . . Database Lockouts . | . . . . . . . . . Manual . | . . . . . . . . . Terminals . | . . . . . . . . . Fabricators . | . . . . . . . . . Repair Stations . | . . . . . . . . . Recycling Units . | . . . . . . . . . Scanalyzers . | . . . . . . . . . Garrison Access . | . . . . . . . . . Terminal Hacks 22 | . . 14 . . 8 . . . Record 20 | . . 13 . . 7 . . . Open Door 1 | . . . . . 1 . . . Proto ID Catalog 1 | . . 1 . . . . . . Fabricator Hacks . | . . . . . . . . . Repair Station Hacks . | . . . . . . . . . Recycling Unit Hacks . | . . . . . . . . . Scanalyzer . | . . . . . . . . . Garrison Access Hacks . | . . . . . . . . . Unauthorized Hacks . | . . . . . . . . . Terminals . | . . . . . . . . . Fabricators . | . . . . . . . . . Repair Stations . | . . . . . . . . . Recycling Units . | . . . . . . . . . Scanalyzers . | . . . . . . . . . Garrison Access . | . . . . . . . . . Data Cores Recovered . | . . . . . . . . . Used . | . . . . . . . . . Hacking Detections . | . . . . . . . . . Full Trace Events . | . . . . . . . . . Feedback Events . | . . . . . . . . . Feedback Blocked . | . . . . . . . . . Robot Schematics Acquired . | . . . . . . . . . Robots Built . | . . . . . . . . . Authchips . | . . . . . . . . . Time . | . . . . . . . . . Total Robot Build Rating . | . . . . . . . . . Part Schematics Acquired . | . . . . . . . . . Parts Built . | . . . . . . . . . Authchips . | . . . . . . . . . Time . | . . . . . . . . . Total Part Build Rating . | . . . . . . . . . Part Studies Acquired . | . . . . . . . . . Parts Repaired . | . . . . . . . . . Time . | . . . . . . . . . Parts Recycled . | . . . . . . . . . Recycled Matter . | . . . . . . . . . Retrieved Matter . | . . . . . . . . . Retrieved Components . | . . . . . . . . . Parts Scanalyzed . | . . . . . . . . . Part Schematics Acquired . | . . . . . . . . . Parts Damaged . | . . . . . . . . . Bothacking | -11 -10 -10 -8 -6 -6 -6 -6 -5 ------------ Run | Yrd Mat Sub Scr Fac Low Low Zio Pro Used RIF Installer . | . . . . . . . . . Robots Hacked . | . . . . . . . . . Non-combat . | . . . . . . . . . Combat . | . . . . . . . . . Robot Hacks Applied . | . . . . . . . . . Relay Couplers Released . | . . . . . . . . . Fabnet Peak Effective % . | . . . . . . . . . Robots Rewired . | . . . . . . . . . Allies Hacked . | . . . . . . . . . Hacks Repelled . | . . . . . . . . . Allies | -11 -10 -10 -8 -6 -6 -6 -6 -5 -------- Run | Yrd Mat Sub Scr Fac Low Low Zio Pro Total Allies 6 | . . . 1 . . 5 . . Largest Group 6 | . . . 1 1 1 6 6 . Highest-Rated Group 299 | . . . 64 64 64 299 291 . Highest-Rated Ally 64 | . . . 64 64 64 64 64 . Total Orders . | . . . . . . . . . Ally Attacks 187 | . . . . . 6 72 109 . Total Damage 4290 | . . . . . 274 1508 2508 . Kills 44 | . . . . . 4 13 27 . Allies Corrupted 1 | . . . . . . . 1 . Allies Melted . | . . . . . . . . . Intel | -11 -10 -10 -8 -6 -6 -6 -6 -5 ------- Run | Yrd Mat Sub Scr Fac Low Low Zio Pro Active Infowar (turns) 5008 | 27 247 558 1641 79 896 570 952 38 Sensors 37 | . . . . . . . . 37 Terrain 4970 | 27 247 558 1641 79 896 570 952 . Jamming 34 | . . . . . . . . 34 Robot Analysis Total . | . . . . . . . . . Derelict Logs Recovered 8 | . . . 3 . 1 3 1 . Drone Launches . | . . . . . . . . . Drone Recoveries . | . . . . . . . . . Exploration | -11 -10 -10 -8 -6 -6 -6 -6 -5 ------------- Run | Yrd Mat Sub Scr Fac Low Low Zio Pro Turns Passed 5210 | 137 247 558 1641 79 896 570 996 86 Spaces Moved 4080 | 61 102 461 1294 59 735 436 822 110 Core 84 | 2 . . 14 . . . . 68 Treads . | . . . . . . . . . Legs 2229 | . . . 135 59 735 436 822 42 Wheels 1767 | 59 102 461 1145 . . . . . Hover . | . . . . . . . . . Flight . | . . . . . . . . . Fastest Speed 50 | 50 90 90 90 90 90 103 90 50 Average Speed 107 | 89 103 101 115 90 104 109 108 65 Slowest Speed 550 | 100 105 105 550 95 105 110 110 90 Overloaded Moves . | . . . . . . . . . Propulsion Burnouts . | . . . . . . . . . Robots Hopped . | . . . . . . . . . Potential Cave-ins . | . . . . . . . . . Cave-ins Triggered . | . . . . . . . . . Exploration Rate (%) 40 | 4 24 30 76 3 77 52 78 17 Regions Visited 8 Branch Regions 6 Pre-discovered Areas 7 | . . . 1 . 2 3 1 . Known Exits Taken 1 | . . . . 1 . . . . Unknown Exits Taken 7 | 1 1 1 1 . 1 1 1 . Scrap Searched 15 | . . 3 5 . 1 4 2 . Spaces Dug . | . . . . . . . . . Terrain Destroyed 14 | . . . . . . 1 13 . Melee . | . . . . . . . . . Projectile 2 | . . . . . . 1 1 . AOE 12 | . . . . . . . 12 . Terrain Rammed . | . . . . . . . . . Walls Destroyed . | . . . . . . . . . Machines Disabled . | . . . . . . . . . Actions | -11 -10 -10 -8 -6 -6 -6 -6 -5 --------- Run | Yrd Mat Sub Scr Fac Low Low Zio Pro Total 4775 | 96 237 545 1452 81 853 498 889 124 Wait 503 | . 129 61 134 7 111 26 30 5 Move 4072 | 60 101 460 1293 58 734 435 821 110 Hop . | . . . . . . . . . Pick Up 48 | 7 2 10 8 3 3 10 5 . Fast Attach 15 | 7 . . 3 . 1 2 2 . Attach 24 | . . . 1 8 . 4 6 5 Detach 1 | . . . . . . . . 1 Swap 6 | . 1 1 1 1 . 1 1 . Drop 31 | . 1 6 12 2 . 1 7 2 Fire 67 | 22 3 . . 2 4 19 17 . Melee 8 | . . 7 . . . . . 1 Ram . | . . . . . . . . . Kick . | . . . . . . . . . Crush . | . . . . . . . . . Escape Stasis . | . . . . . . . . . Rewire . | . . . . . . . . . Trap . | . . . . . . . . . Miscellaneous . | . . . . . . . . . Route ------- -11/Scrapyard -10/Materials (discovered 2 exits: [*Min] / *Sub) -10/Subcaves -8/Scraptown (discovered 2 exits: [*Fac x2]) -6/Factory (discovered 5 exits: Fac x3 / *Low x2) -6/Lower Caves -6/Lower Caves (discovered 2 exits: *Fac / [*Zio]) -6/Zion -5/Proximity Caves (discovered 1 exit: Fac) History --------- Turn | Location | Event 14 | -11/Scrapyard | Discovered new exit (range 16) 138 | -11/Scrapyard | Entered Materials 139 | -10/Materials | Met a group of wandering Federalists 304 | -10/Materials | Build established: Mutant 355 | -10/Materials | Discovered new exit (range 15) 383 | -10/Materials | Discovered new exit (range 3) 385 | -10/Materials | Entered Subcaves 385 | -10/Subcaves | Accompanied by 1 ally 386 | -10/Subcaves | Continued accompanying wandering Federalists (4) 423 | -10/Subcaves | Shifting Twisted Machinery released Sub. Machine Gun 436 | -10/Subcaves | Shifting Twisted Machinery released Sub. Optics 651 | -10/Subcaves | Visited 4L-MR0's lab 665 | -10/Subcaves | Found Arachnoskeleton 754 | -10/Subcaves | Shifting Twisted Machinery released Flamer 772 | -10/Subcaves | Shifting Twisted Machinery released Shrapnel Trap 783 | -10/Subcaves | Visited Clippyterm 786 | -10/Subcaves | Learned Factory stockpile data 786 | -10/Subcaves | Learned 40 Factory zone layouts 943 | -10/Subcaves | Entered Scraptown 1102 | -8/Scraptown | Visited Spacefarers 1130 | -8/Scraptown | Visited Assassins FH 1163 | -8/Scraptown | Visited Supply Room 1192 | -8/Scraptown | Visited Awakened 1203 | -8/Scraptown | Visited Fellowship of the Rings 1235 | -8/Scraptown | Scanned Subdweller tech in exchange for log data 1239 | -8/Scraptown | Learned location of Armory (-3) 1240 | -8/Scraptown | Learned Research terminal intel 1241 | -8/Scraptown | Learned Factory stockpile data 1253 | -8/Scraptown | Discovered new exit (range 13) 1593 | -8/Scraptown | Visited Cyclists 1633 | -8/Scraptown | Visited Shadow of the Wyrm 1681 | -8/Scraptown | Visited UFD Registry 1683 | -8/Scraptown | Registered with UFD as "Fissionninja" 1707 | -8/Scraptown | Visited LU-1G1's Boring Crew 1722 | -8/Scraptown | Visited Scrapoid Pod Storage 1729 | -8/Scraptown | Found Scrapoid Pod 1749 | -8/Scraptown | Visited Botcube Research 1760 | -8/Scraptown | Found Lrg. Botcube 1886 | -8/Scraptown | Visited DA-N13 Charitable Foundation 1895 | -8/Scraptown | Found DCF Scrap (30 items) 1982 | -8/Scraptown | Visited Supply Room 2032 | -8/Scraptown | Lrg. Botcube activated 2060 | -8/Scraptown | Lrg. Botcube completed mutation into treaded form, armed with 1 gun, 2 cannons. 2100 | -8/Scraptown | Visited Research Penetration Think Tank 2144 | -8/Scraptown | Visited Chapter 10 2190 | -8/Scraptown | Visited Cartography Club 2195 | -8/Scraptown | Build established: Derelict-Mutant 2207 | -8/Scraptown | Found Surveybot 17 Chip 2487 | -8/Scraptown | Met Optimus 2487 | -8/Scraptown | Accepted into 0bPrime 2563 | -8/Scraptown | Discovered new exit (range 5) 2584 | -8/Scraptown | Entered Factory 2584 | -6/Factory | Accompanied by 1 ally 2584 | -6/Factory | Evolved 8 slots: Power x1, Propulsion x1, Utility x5, Weapon x1 2585 | -6/Factory | Identified exit to Lower Caves 2585 | -6/Factory | Identified exit to Factory 2587 | -6/Factory | Attached Arachnoskeleton, gained temporary slots: Propulsion x3 2663 | -6/Factory | Entered Lower Caves 2663 | -6/Lower Caves | Accompanied by 1 ally 2689 | -6/Lower Caves | Entered an active Warlord outpost 2696 | -6/Lower Caves | Learned location of Extension (-4) 2696 | -6/Lower Caves | Learned 8 Research zone layouts 2696 | -6/Lower Caves | Learned Armory stockpile data 2696 | -6/Lower Caves | Learned Extension garrison access intel 2937 | -6/Lower Caves | Build established: Derelict-Skirmisher 3011 | -6/Lower Caves | Attracted the attention of an 0b10 checkpoint 3411 | -6/Lower Caves | Discovered new exit (range 9) 3559 | -6/Lower Caves | Entered another Lower Caves area 3559 | -6/Lower Caves | Accompanied by 1 ally 3593 | -6/Lower Caves | Discovered exit to Factory (range 10) 3854 | -6/Lower Caves | Learned location of Zion (-6) 3896 | -6/Lower Caves | Scrapoid Pod released 06L05-D (x5) 4028 | -6/Lower Caves | Found Imp. Powered Armor 4070 | -6/Lower Caves | Discovered new exit (range 14) 4086 | -6/Lower Caves | Ambushed by wild Derelicts 4129 | -6/Lower Caves | Entered Zion 4129 | -6/Zion | Accompanied by 6 allies 4186 | -6/Zion | Received a hallucinogenic algorithm 4196 | -6/Zion | Discovered new exit (range 16) 4347 | -6/Zion | Learned Factory emergency access door positions 4415 | -6/Zion | Found Prototype Device 4416 | -6/Zion | Build established: Scavenger-Tank 4493 | -6/Zion | Learned location of Warlord (-4) 4661 | -6/Zion | Learned location of 1 exit from Proximity Caves 4784 | -6/Zion | Turned away by Imprinter 4856 | -6/Zion | Attempted to imprint without authorization 4856 | -6/Zion | Attacked by Zionites 5003 | -6/Zion | Identified Mobile Refinery Mk. CCLXVII 5060 | -6/Zion | Spotted T1-GD7(B) 5064 | -6/Zion | CL-ANK came to Zion's defense 5065 | -6/Zion | Spotted P6-7MD(B) 5125 | -6/Zion | Entered Proximity Caves 5133 | -5/Proximity Caves | Lost 14 parts (2p3n5u4w) 5179 | -5/Proximity Caves | Core integrity fell below 50% 5192 | -5/Proximity Caves | Core integrity fell below 20% 5205 | -5/Proximity Caves | Lost 5 parts (1p1n3u) 5211 | -5/Proximity Caves | Destroyed by H-66 Slayer with Gauss Rifle Last Messages --------------- 05158_ Penetrated by Slug. 05158_ Neutrino Core destroyed. 05159_ Slug penetrates H-66 Slayer. 05159_ Imp. Transmission Jammer destroyed. 05160_ Adv. Power Amplifier destroyed. 05160_ Slug penetrates Wall. 05162_ System corrupted: Hvy. Flail rejected. 05162_ Penetrated by Slug. 05163_ Slug penetrates Wall. 05164_ Penetrated by Slug. 05174_ Arachnoskeleton destroyed. 05176_ Dropped Mobile Refinery Mk. CCLXVII. 05177_ Penetrated by Slug. 05177_ Dropped Lrg. Storage Unit. 05178_ Penetrated by Slug. 05185_ Slug penetrates Wall. 05185_ Penetrated by Slug. 05186_ Slug penetrates Wall. 05188_ Penetrated by Slug. 05204_ Acquired 5 matter. Map ----- +----------------------------------------------------+ | | | | | | | | | | | | | | | ?????????????????????????????????????????????????? | | ?????????????????????????????????????????????????? | | ?????????????????????????????????????????????????? | | ?????????????????????????????????????????????????? | | ?????????????????????????????????????????????????? | | ?????????????????????????????????????????????????? | | ?????????????????????????????????????????????????? | | ?????????????????????????????????????????????????? | | ?????????????????????????????????????????????????? | | ?????????????????????????????????????????????????? | | ?????????????????????????????????????????????????? | | ?????????????????????????????????????????????????? | | ?????????????????????????????????????????????????? | | ?????????????????????????????????????????????????? | | ??????????????##????????????###??????????????????? | | ?????????????## ???????????## #??????????????????? | | ?????????##??# ??????##### ##?????????????????? | | ????????# ###$ ??????# ####??????????????? | | ???????? ???#### @### #??????????????? | | ??????? #?## ## #?# % #??????????????? | | ???????? ## # #?## ##??????????????? | | ?????????# #??## #???????????????? | | ??????????# ##??# #?????????? #???? | | ??????????# ##?#*%#?????? ????? | | ??????????# #?# #### #??? | | ????##????# ## h ### #??? | | ????? ###?????## h##### ## #### #???? | | ? ??? #?????## ##???# #?????? #?????? | | ? ??? ??????## h##????## #???????????????? | | ? ?? ####???# #??????#######???????????????? | | ??? ??# ##??# #???????????###??????????????? | | ???? ## ##?# #????????#### #??????????????? | | ####?# #?# ###????### #??????????????? | | #?# ### ###??# #??????????????? | | ##??# #??# #??????????????? | | #????# #???# ##?????????????? | | ##????## ##???# ##????????????? | | ##?????## ##????# #????????????? | | ##??#### #?##### ## ##????????????? | | #?## / ### ## ####?????????????? | | ### ! #???????????????? | | ## ## ! #???????????????? | | #### ##???????????????? | +----------------------------------------------------+ Best States ------------- Heat Dissipation 51 Energy Generation 31 Energy Capacity 350 Matter Stores 300 Matter Capacity 300 Sight Range 16 Robot Scan Range 19 Terrain Scan Range 16 Terrain Scan Density 1210 Jamming Range 14 Power Amplification 30 Armor Coverage 775 Evasion (%) 57 Defensive Hacking 11 Item Schematics ----------------- None Robot Schematics ------------------ None Fabricated ------------ Nothing Repaired ---------- Nothing Studied --------- None Alien Tech Used ----------------- None Achievements -------------- None Challenges ------------ None Game ------ Seed ParticleSigixExtractor Manual? 0 Play Time 00:43:50 Cumulative 117.4 hours Start 2025.12.10 @ 19:39:47 End 2025.12.10 @ 20:23:12 Sessions 1 Manual Loads 0 Difficulty Rogue Special Mode None Game No. 168 Rogue 168 Adventurer 0 Explorer 0 Win Type - Total 1 Types 1/0/0/0/0/0/0/0/0/0 Lore% 61 Gallery% 56 Achievement% 42 Wizard Run 0 Options --------- Layout 2 ASCII 0 Keyboard 0 Movement Mouse Keybinds 0 Fullscreen 1 Font 16/SmallcapsGlow Map View 50x44 Zoom Use 0% Tactical HUD 1 Map Filters NONE Filters NONE Steam SD RUN: 4bd99413-7684-459b-af76-2bdb3b160ccb